[Event "Chinese League Div-A Rapid 2022"]
[Site "Fuling,Chongqing"]
[Date "2022.09.19"]
[Round "11.15"]
[White "Zhang, Xiaowen"]
[Black "Guo, Weibao"]
[Result "1/2-1/2"]
[ECO "C06"]
[WhiteElo "2307"]
[BlackElo "1907"]
[Annotator "TA"]
[PlyCount "46"]
[EventDate "2022.09.07"]
[EventType "team-tourn"]
[EventCountry "CHN"]
[SourceTitle "playchess.com"]
[Source "ChessBase"]
[SourceQuality "1"]
[TimeControl "1500+10"]

{[%evp 24,33,14,23,18,10,19,12,29,22,36,40]} 1. e4 {[%emt 0:00:04]} e6 {[%emt 0:00:01]} 2. d4 {[%emt 0:00:15]} d5 {[%emt 0:00:03]} 3. Nd2 {[%emt 0:00:18]} Nf6 {[%emt 0:01:07]} 4. e5 {[%emt 0:01:11]} Nfd7 {[%emt 0:00:03]} 5. Bd3 {[%emt 0:00:07]} c5 {[%emt 0:00:10]} 6. c3 {[%emt 0:00:03]} Nc6 {[%emt 0:00:04]} 7. Ne2 {[%emt 0:00:03]} cxd4 {[%emt 0:00:15]} 8. cxd4 {[%emt 0:00:02]} f6 {[%emt 0:00:10]} 9. exf6 {[%emt 0:00:49]} Nxf6 {[%emt 0:00:50]} 10. Nf3 {[%emt 0:00:12]} Bd6 {[%emt 0:00:29]} 11. O-O {[%emt 0:00:11]} Qc7 {[%emt 0:02:57]} 12. Ng3 {[%emt 0:03:11]} O-O {[%emt 0:02:28]} 13. Bd2 {[%emt 0:00:22]} Bd7 {[%emt 0:00:26] CPLX 2.5. C06: French Tarrasch: 3...Nf6 4 e5 Nfd7 5 Bd3 main lines.} 14. Rc1 {[%emt 0:00:09] CPLX 2.5 8 (Bd2-c3) (=4)} Qb6 {[%emt 0:01:12][%csl LRb2,LRd4] CPLX 2.7 9 (Ra8-e8) (=5)} 15. Bc3 {[%emt 0:01:54] CPLX 2.9} Bf4 {[%emt 0:01:21] CPLX 2.6 17 (g7-g6) (=9)} 16. Rc2 {[%emt 0:02:12] BESTDEEP} Rac8 {[%emt 0:02:21] CPLX 2.7 14 (Nc6-b4) (=10)} 17. a3 {[%emt 0:00:41] [#] Black got outplayed after the opening.  Weighted Error Value: White=0.02 (flawless) /Black=0.10 (very precise)} {Predecessor:} Na5 $146 18. Bb4 Rxc2 19. Bxc2 Rc8 20. Ne5 Be8 21. Ng4 Nd7 22. Re1 h5 23. Ne2 Bb8 {½-½ (40) Kahl,F (2265)-Pech,J (2050) DESC email 2014} 1/2-1/2

[Event "Chinese League Div-A Rapid 2022"]
[Site "Fuling,Chongqing"]
[Date "2022.09.19"]
[Round "11.16"]
[White "Wen, Yang"]
[Black "Zhou, Weiqi"]
[Result "1/2-1/2"]
[ECO "C92"]
[WhiteElo "2588"]
[BlackElo "2597"]
[Annotator "TA"]
[PlyCount "30"]
[EventDate "2022.09.07"]
[EventType "team-tourn"]
[EventCountry "CHN"]
[SourceTitle "playchess.com"]
[Source "ChessBase"]
[SourceQuality "1"]
[TimeControl "1500+10"]

{[%evp 29,30,0,27]} 1. e4 {[%emt 0:00:04]} e5 {[%emt 0:00:02]} 2. Nf3 {[%emt 0:00:03]} Nc6 {[%emt 0:00:04]} 3. Bb5 {[%emt 0:00:04]} a6 {[%emt 0:00:35]} 4. Ba4 {[%emt 0:00:22]} Nf6 {[%emt 0:00:05]} 5. O-O {[%emt 0:00:13]} Be7 {[%emt 0:00:05]} 6. Re1 {[%emt 0:00:07]} b5 {[%emt 0:00:06]} 7. Bb3 {[%emt 0:00:04]} d6 {[%emt 0:00:17]} 8. c3 {[%emt 0:00:06]} O-O {[%emt 0:00:08]} 9. h3 {[%emt 0:00:06]} Re8 {[%emt 0:01:16]} 10. d4 {[%emt 0:02:20]} Bb7 {[%emt 0:00:56]} 11. Ng5 {[%emt 0:01:18]} Rf8 {[%emt 0:01:24]} 12. Nf3 {[%emt 0:02:27]} Re8 {[%emt 0:02:34]} 13. Ng5 {[%emt 0:02:30]} Rf8 {[%emt 0:02:47]} 14. Nf3 {[%emt 0:00:21]} Re8 {[%emt 0:00:03] [#] 14...h6 is more advanced technology.} 15. Ng5 $146 {[%emt 0:00:04]} ({Predecessor:} 15. a3 Bf8 16. d5 Na5 17. Ba2 c6 18. dxc6 Bxc6 19. Bg5 Nc4 20. Nbd2 Nb6 21. Nh2 h6 22. Bxf6 Qxf6 23. Re3 Ra7 24. Ng4 {0-1 (54) Tari,A (2660)-Le,Q (2709) Chess.com INT 2022}) 15... Rf8 {[%emt 0:00:13]} 1/2-1/2

[Event "Chinese League Div-A Rapid 2022"]
[Site "Fuling,Chongqing"]
[Date "2022.09.19"]
[Round "11.17"]
[White "Xue, Haowen"]
[Black "Lin, Yi"]
[Result "1-0"]
[ECO "C54"]
[WhiteElo "2128"]
[BlackElo "2394"]
[Annotator "TA"]
[PlyCount "126"]
[EventDate "2022.09.07"]
[EventType "team-tourn"]
[EventCountry "CHN"]
[SourceTitle "playchess.com"]
[Source "ChessBase"]
[SourceQuality "1"]
[TimeControl "1500+10"]

{[%evp 16,126,44,0,35,14,54,8,19,8,35,0,0,-39,10,0,20,0,3,2,80,70,74,77,83,82,102,97,108,106,147,140,154,154,154,154,154,147,147,147,147,143,147,126,145,131,162,146,157,54,139,7,18,0,0,-104,-60,-70,0,-229,82,107,80,82,94,72,73,71,242,56,57,0,105,94,160,151,130,0,0,0,0,0,102,109,619,644,620,581,636,658,609,597,766,835,727,705,12827,12827,12830,12830,12829,12831,12831,12831,12833,12830,12832,12831,12829,12830,11693,2047,901]} 1. e4 {[%emt 0:00:02]} e5 {[%emt 0:00:01]} 2. Nf3 {[%emt 0:00:01]} Nc6 {[%emt 0:00:02]} 3. Bc4 {[%emt 0:00:05]} Nf6 {[%emt 0:00:04]} 4. d3 {[%emt 0:00:01]} Bc5 {[%emt 0:00:03]} 5. O-O {[%emt 0:00:06]} d6 {[%emt 0:00:02]} 6. c3 {[%emt 0:00:01]} Bb6 {[%emt 0:00:03]} 7. Bb3 {[%emt 0:00:24]} O-O {[%emt 0:00:38]} 8. Nbd2 {[%emt 0:00:03]} Be6 {[%emt 0:00:20]} 9. h3 {[%emt 0:00:40] CPLX 2.5 44 (Bb3xe6) (=44)} h6 {[%emt 0:00:09] CPLX 2.6 35 (Be6xb3) (=35). C54: Giuoco Piano: 4 c3 Nf6, main lines with 5 d4 and 5 d3.} 10. Re1 {[%emt 0:00:13] CPLX 2.6 21 (Bb3xe6) (=33)} Ne7 {[%emt 0:00:19] CPLX 2.9 40 (a7-a5) (=38)} 11. Bc2 {[%emt 0:00:39] CPLX 2.9 46 (Bb3xe6) (=37)} (11. Bxe6 $14 {is more appropriate.} fxe6 12. Nc4) 11... Ng6 {[%emt 0:00:16] CPLX 2.7 11 (c7-c5) (=29). The position is equal.} 12. d4 {[%emt 0:00:57] CPLX 2.7} c6 {[%emt 0:01:45] [#] CPLX 2.5 27 (e5xd4) (=28)} 13. b3 $146 {[%emt 0:00:30] CPLX 2.4 35 (Nd2-f1) (=29)} ({Predecessor:} 13. Nf1 Qc7 14. Be3 Rad8 15. Qc1 Rfe8 16. Ng3 Qd7 17. a4 Bc7 18. a5 a6 19. Ra4 {1-0 (38) Radjabov,T (2744)-Harikrishna,P (2669) Ningbo 2011}) 13... Re8 {[%emt 0:00:07] BESTDEEP} 14. Bb2 {[%emt 0:00:39] CPLX 2.4 39 (Nd2-f1) (=31)} Nh7 {[%emt 0:04:30] CPLX 2.4 49 (Qd8-d7) (=27)} (14... Qd7 $15) 15. a4 $11 {[%emt 0:04:21] BESTDEEP} a5 {[%emt 0:00:32] CPLX 2.3 20 (Bb6-c7) (=26)} 16. Nc4 {[%emt 0:00:48] CPLX 2.3 20 (Bb2-c1) (=26)} Bc7 {[%emt 0:01:02] BESTDEEP} 17. Ba3 {[%emt 0:01:54] BESTDEEP} Bxc4 {[%emt 0:05:26] RELBLUND 78 (e5xd4) (=29)} (17... exd4 $11 18. Nxd4 (18. Qxd4 Ng5 $11) 18... Ng5) 18. bxc4 $16 {[%emt 0:00:01] RECAPT} b6 {[%emt 0:00:11] CPLX 2.3 4 (Nh7-f6) (=26)} 19. Nh2 {[%emt 0:01:34] BESTDEEP} Nf6 {[%emt 0:00:14] CPLX 2.3 6 (Ra8-c8) (=25)} 20. Nf1 {[%emt 0:00:44] CPLX 2.3 1 (d4-d5) (=17)} Nf4 {[%emt 0:00:16] CPLX 2.3 20 (Ra8-c8) (=24)} 21. Bc1 {[%emt 0:01:00] CPLX 2.9} Nh7 {[%emt 0:03:19] CPLX 2.9 11 (Qd8-d7) (=23)} 22. Ne3 {[%emt 0:02:14] BESTDEEP} Ng5 {[%emt 0:00:36] CPLX 2.6 41 (Qd8-g5) (=24)} 23. d5 {[%emt 0:00:45] BESTDEEP} c5 {[%emt 0:00:40] CPLX 3.0 14 (Ng5-h7) (=24)} 24. h4 {[%emt 0:00:19] CPLX 2.8} Nh7 {[%emt 0:00:02] CPLX 3.0} 25. g3 {[%emt 0:00:03] EASY} Ng6 {[%emt 0:00:05] BESTDEEP} 26. Qf3 {[%emt 0:00:25] CPLX 2.3 7 (Bc2-d3) (=12)} Ne7 {[%emt 0:01:19] CPLX 2.5 0 (Qd8-d7) (=20)} 27. Bd1 {[%emt 0:00:50][%cal Bc2d1,Bd1e2,Be2f1,Bf1h3][%mdl 32] CPLX 2.4 0 (Kg1-g2) (=11)} Rf8 {[%emt 0:00:04] CPLX 2.4 0 (Ra8-b8) (=19)} 28. Be2 {[%emt 0:00:43] CPLX 2.2 4 (Bc1-d2) (=11)} Kh8 {[%emt 0:03:00] CPLX 2.2 4 (Qd8-d7) (=18)} 29. Bf1 {[%emt 0:00:12] CPLX 2.2 21 (Be2-d3) (=11)} Qe8 {[%emt 0:01:27] CPLX 2.2 19 (f7-f5) (=18)} 30. Bh3 {[%emt 0:00:09] CPLX 2.2 14 (Bf1-d3) (=11)} Bd8 {[%emt 0:00:04] CPLX 2.3 31 (f7-f5) (=19)} 31. Kh2 {[%emt 0:00:29] CPLX 2.3 16 (Ra1-a2) (=12)} Ra7 {[%emt 0:00:06] CPLX 2.3 11 (Ra8-b8) (=18)} 32. Nc2 {[%emt 0:00:37] CPLX 2.3 103 (Ra1-a2) (=15)} (32. Ra2 $16) 32... Rb7 {[%emt 0:01:54] CPLX 2.4 85 (f7-f5) (=21)} (32... f5 $1 $14) 33. Bd2 {[%emt 0:00:08] RELBLUND 132 (Qf3-d3) (=20)} (33. Qd3 $16) 33... f5 $1 $11 {[%emt 0:00:24] DEEPSTRONG=>BLUNDERREACT} 34. exf5 {[%emt 0:00:29] CPLX 2.7 18 (Qf3-e2) (=20)} Nxf5 {[%emt 0:00:10] RECAPT} 35. Qg2 {[%emt 0:02:27] MISS-Bh3xf5 104 (Bh3xf5) (=23)} (35. Bxf5 $11 g6 36. Bxh6 $1 Rxf5 37. Qg2) 35... Rbf7 {[%emt 0:00:05][%cal Of5h4] And now ...Nxh4! would win. MISSDEEP-Bd8xh4 44 (Bd8xh4) (=20)} 36. f4 $1 {[%emt 0:00:40] CPLX 2.9} Qe7 {[%emt 0:01:36] CPLX 3.1 70 (g7-g5) (=22)} (36... g5 $15 37. hxg5 hxg5 38. Bxf5 Rxf5) 37. Na3 $2 {[%emt 0:04:13] RELBLUND 229 (h4-h5) (=29)} (37. h5 $11 {and White has nothing to worry.}) 37... h5 $2 {[%emt 0:00:03] RELBLUND 311 (g7-g5) (=32)} (37... g5 $19 {White must now prevent ...gxf4.} 38. hxg5 hxg5 39. Bxf5 Rxf5) 38. Re2 $36 {[%emt 0:00:30][%mdl 2048] Keeping Black busy. CPLX 3.4 0 (Na3-b5) (=28)} Bc7 {[%emt 0:00:10] BESTDEEP} 39. Nb5 {[%emt 0:00:07] CPLX 3.2} g6 {[%emt 0:00:06] CPLX 3.3 12 (Bc7-b8) (=30)} 40. Rae1 {[%emt 0:00:35] CPLX 3.4 22 (f4xe5) (=27)} Bb8 {[%emt 0:00:13] CPLX 3.3} 41. Kh1 {[%emt 0:00:31] CPLX 3.3 2 (Kh2-g1) (=27)} Nf6 $2 {[%emt 0:00:04] [#] RELBLUND 171 (Rf8-g8) (=34)} (41... Rg8 $16) 42. fxe5 $2 {[%emt 0:00:03] RELBLUND 186 (Nb5xd6) (=31)} (42. Nxd6 $1 $18 {[%mdl 512]} Nxd6 43. fxe5) 42... dxe5 $14 {[%emt 0:00:01] RECAPT} 43. Bg5 {[%emt 0:00:03] CPLX 3.2 57 (Bd2-f4) (=32)} ({Better is} 43. Bf4 $1 $14) 43... Qd7 {[%emt 0:00:05] RELBLUND 105 (e5-e4) (=35)} (43... e4 $11 {remains equal.}) 44. d6 $16 {[%emt 0:00:42] Bxf5 is the strong threat. CPLX 3.4} Ng4 {[%emt 0:00:39] CPLX 3.7 66 (e5-e4) (=36)} ({Black should try} 44... e4) 45. Bxg4 {[%emt 0:00:10] EASY} hxg4 {[%emt 0:00:02] RECAPT} 46. Rxe5 {[%emt 0:00:12] CPLX 3.6 130 (Re2-d2) (=33)} (46. Rd2 $16) 46... Nxd6 $11 {[%emt 0:00:05] DEEPSTRONG=>BLUNDERREACT} 47. Re7 {[%emt 0:00:25] CPLX 3.1} Qf5 {[%emt 0:00:10] CPLX 3.6 0 (Rf7xe7) (=33)} 48. Rxf7 {[%emt 0:00:09] BESTDEEP} Qxf7 {[%emt 0:00:05] [#] RELBLUND 102 (Nd6xf7) (=35)} (48... Nxf7 $11 49. Rf1 Qe6) 49. Be7 $1 $16 {[%emt 0:00:14] White is more active. White now steadily converts the win. DEEPSTRONG=>BLUNDERREACT} Re8 {[%emt 0:00:12][%mdl 8192] MISSDEEP-Nd6-f5 400 (Nd6-f5) (=44)} (49... Nf5 $16 50. Bxf8 Qxf8) 50. Nxd6 $18 {[%emt 0:00:02] EASY. White is clearly winning.} Bxd6 {[%emt 0:00:02] [#] RECAPT} 51. Bf6+ {[%emt 0:00:01][%mdl 512] EASY} Kh7 {[%emt 0:00:02] CPLX 3.0 55 (Qf7xf6) (=43)} (51... Qxf6 52. Rxe8+) 52. Rxe8 {[%emt 0:00:02][%csl Gf6][%cal Re8h8] EASY} Qxf6 {[%emt 0:00:08][%mdl 4096] Endgame KQR-KQB. BESTDEEP} 53. Re3 {[%emt 0:00:19][%cal Be8e3,Be3e7,Be7e6,Be6b6,Bb6b1,Bb1f1,Bf1f4,Bf4g4][%mdl 32] BESTDEEP} ({Not} 53. Qb7+ Kh6 $16) 53... Be5 {[%emt 0:00:16] EVAL 169 (Qf6-f5) (=45)} 54. Qe2 {[%emt 0:00:16] EVAL} Bxc3 {[%emt 0:00:20] EVAL} 55. Re7+ {[%emt 0:00:05] EVAL} Kg8 {[%emt 0:00:14] BEVAL 400 (Kh7-h8) (=51)} 56. Qe6+ {[%emt 0:00:01] BEVAL} Qxe6 {[%emt 0:00:29] BEVAL 3 (Kg8-f8) (=50)} 57. Rxe6 {[%emt 0:00:01] KR-KB. BEVAL} Kf7 {[%emt 0:00:02] BEVAL 0 (Kg8-h7) (=49)} 58. Rxb6 {[%emt 0:00:03] BEVAL} Bd2 {[%emt 0:00:10] BEVAL 0 (Bc3-e1) (=48)} 59. Kg2 {[%emt 0:00:07] BEVAL} Be1 {[%emt 0:00:06] BEVAL 2 (Bd2-c3) (=47)} 60. Rb1 {[%emt 0:00:02] BEVAL 3 (Rb6-d6) (=24)} Bc3 {[%emt 0:00:08] BEVAL 2 (Be1-d2) (=47)} 61. Rf1+ {[%emt 0:00:06] BEVAL} Ke6 {[%emt 0:00:11] BEVAL 0 (Kf7-g7) (=46)} 62. Rf4 {[%emt 0:00:02] BEVAL} Bd2 {[%emt 0:00:06] BEVAL} 63. Rxg4 {[%emt 0:00:05] BEVAL} Kf5 {[%emt 0:00:00] Weighted Error Value: White=0.34/Black=0.47} 1-0

[Event "Chinese League Div-A Rapid 2022"]
[Site "Fuling,Chongqing"]
[Date "2022.09.19"]
[Round "11.18"]
[White "Xu, Yinglun"]
[Black "Xiao, Tong"]
[Result "1/2-1/2"]
[ECO "D41"]
[WhiteElo "2549"]
[BlackElo "2027"]
[Annotator "TA"]
[PlyCount "33"]
[EventDate "2022.09.07"]
[EventType "team-tourn"]
[EventCountry "CHN"]
[SourceTitle "playchess.com"]
[Source "ChessBase"]
[SourceQuality "1"]
[TimeControl "1500+10"]

{[%evp 20,33,21,4,4,4,14,10,20,26,44,46,56,49,57,53]} 1. c4 {[%emt 0:00:02]} c5 {[%emt 0:00:01]} 2. Nf3 {[%emt 0:00:03]} Nc6 {[%emt 0:00:06]} 3. Nc3 {[%emt 0:00:06]} e6 {[%emt 0:00:10]} 4. g3 {[%emt 0:00:21]} Nf6 {[%emt 0:00:29]} 5. Bg2 {[%emt 0:00:03]} d5 {[%emt 0:00:02]} 6. cxd5 {[%emt 0:00:09]} Nxd5 {[%emt 0:00:08]} 7. O-O {[%emt 0:01:44]} Be7 {[%emt 0:00:02]} 8. d4 {[%emt 0:00:58]} O-O {[%emt 0:00:47]} 9. Nxd5 {[%emt 0:02:29]} exd5 {[%emt 0:00:17]} 10. dxc5 {[%emt 0:00:05]} Bxc5 {[%emt 0:00:05]} 11. b3 {[%emt 0:00:17]} Bf5 {[%emt 0:03:09] D41: Queen's Gambit Declined: Semi-Tarrasch with 5 cxd5.} 12. Bb2 {[%emt 0:00:24]} Be4 {[%emt 0:00:05]} 13. Rc1 {[%emt 0:00:49]} Bb6 {[%emt 0:00:23] [#]} 14. Nd4 $146 {[%emt 0:01:53]} ({Predecessor:} 14. Qd2 Re8 15. Rfd1 Qd6 16. e3 Rad8 17. Nd4 Ne5 18. Nb5 Qe6 19. Bxe5 Qxe5 20. Nd4 h5 21. h4 g5 22. hxg5 Qxg5 {1-0 (32) Huebner,R (2603)-Sutter,O (2368) Switzerland 2010}) 14... Nxd4 {[%emt 0:01:36]} 15. Bxd4 {[%emt 0:00:08] White is slightly better.} Qe7 {[%emt 0:00:06] [#] And now ...Bxg2 would win.} 16. Bxb6 {[%emt 0:02:24]} axb6 {[%emt 0:00:02]} 17. a4 {[%emt 0:00:02] Black did not feel at home in the position after the opening.  Weighted Error Value: White=0.04 (flawless) /Black=0.07 (flawless)} 1/2-1/2

[Event "Chinese League Div-A Rapid 2022"]
[Site "Fuling,Chongqing"]
[Date "2022.09.19"]
[Round "11.19"]
[White "Chen, Yining"]
[Black "Song, Yuxin"]
[Result "1/2-1/2"]
[ECO "D27"]
[WhiteElo "1745"]
[BlackElo "2317"]
[Annotator "TA"]
[PlyCount "60"]
[EventDate "2022.09.07"]
[EventType "team-tourn"]
[EventCountry "CHN"]
[SourceTitle "playchess.com"]
[Source "ChessBase"]
[SourceQuality "1"]
[TimeControl "1500+10"]

{[%evp 29,60,3,6,7,10,12,0,-11,-12,-12,-11,-11,-9,-21,-12,-32,-19,-24,-12,-16,0,0,0,0,0,0,0,0,0,0,0,0,0]} 1. d4 {[%emt 0:00:02]} Nf6 {[%emt 0:00:00]} 2. c4 {[%emt 0:00:03]} e6 {[%emt 0:00:01]} 3. Nf3 {[%emt 0:00:03]} d5 {[%emt 0:00:01]} 4. Nc3 {[%emt 0:00:03]} dxc4 {[%emt 0:00:01]} 5. e3 {[%emt 0:00:05]} a6 {[%emt 0:00:01]} 6. a4 {[%emt 0:00:01]} c5 {[%emt 0:00:01]} 7. Bxc4 {[%emt 0:00:04]} Nc6 {[%emt 0:00:01]} 8. O-O {[%emt 0:00:05]} Be7 {[%emt 0:00:02]} 9. Qe2 {[%emt 0:00:02]} cxd4 {[%emt 0:00:02]} 10. Rd1 {[%emt 0:00:02]} e5 {[%emt 0:00:01]} 11. exd4 {[%emt 0:00:03]} exd4 {[%emt 0:00:02]} 12. Nxd4 {[%emt 0:00:08]} Nxd4 {[%emt 0:00:02]} 13. Qe5 {[%emt 0:00:05]} Qd6 {[%emt 0:00:01]} 14. Qxd6 {[%emt 0:00:28]} Bxd6 {[%emt 0:00:01]} 15. Rxd4 {[%emt 0:00:02]} Bc5 {[%emt 0:00:01] CPLX 2.4} 16. Rd1 {[%emt 0:00:43] D27: Queen's Gambit Accepted: Classical main line: 7 e4!? and 7 a4.} Be6 {[%emt 0:00:04] CPLX 3.0} 17. Bxe6 {[%emt 0:00:07] CPLX 2.4} fxe6 {[%emt 0:00:02] [#] RECAPT} 18. Be3 $146 {[%emt 0:00:07] CPLX 2.0 11 (Bc1-g5) (=4)} ({Predecessor:} 18. Kf1 Kf7 19. Ke2 Rhd8 20. Be3 Bxe3 21. Kxe3 e5 22. f3 Ke6 23. Rac1 Rxd1 24. Rxd1 {½-½ (47) Ivanchuk,V (2678)-Carlsen,M (2863) chess24.com INT 2020}) 18... Bxe3 {[%emt 0:00:15] CPLX 2.1} 19. fxe3 {[%emt 0:00:03] RECAPT} Ke7 {[%emt 0:00:02] CPLX 2.0} 20. h3 {[%emt 0:00:43] CPLX 2.0 0 (Rd1-d4) (=2)} Rac8 {[%emt 0:01:08] CPLX 2.0} 21. Rd3 {[%emt 0:00:38] CPLX 2.0 12 (Ra1-a3) (=4)} Rhd8 {[%emt 0:04:14] CPLX 2.0 9 (Rc8-c4) (=1)} 22. Rad1 {[%emt 0:00:14] CPLX 2.1 20 (Rd3xd8) (=6)} Rxd3 {[%emt 0:00:51] CPLX 2.3 13 (Rd8-d7) (=3)} 23. Rxd3 $15 {[%emt 0:00:05][%mdl 4096] Endgame KRN-KRN. RECAPT} Rc5 {[%emt 0:00:32] CPLX 2.0 12 (Rc8-c6) (=4)} 24. Kf2 {[%emt 0:02:20] CPLX 2.0. The position is equal.} b5 {[%emt 0:02:54] CPLX 2.0 16 (Rc5-c6) (=5)} 25. axb5 {[%emt 0:00:07] CPLX 2.0} axb5 {[%emt 0:00:02] RECAPT} 26. Rd4 {[%emt 0:01:00] CPLX 2.0} Rf5+ {[%emt 0:02:19] CPLX 2.0 0 (Nf6-e8) (=4)} 27. Ke1 {[%emt 0:01:09] CPLX 2.0 0 (Kf2-e2) (=4)} Rg5 {[%emt 0:00:02] BESTDEEP} 28. Kf2 {[%emt 0:00:04] CPLX 2.0} Rf5+ {[%emt 0:00:01] CPLX 2.0 0 (Rg5-c5) (=4)} 29. Ke1 {[%emt 0:00:02] CPLX 2.0 0 (Kf2-e2) (=3)} Rg5 {[%emt 0:00:00] BESTDEEP} 30. Kf2 {[%emt 0:00:01] CPLX 2.0} Rf5+ {[%emt 0:00:01] An uneventful encounter.  Weighted Error Value: White=0.03 (flawless) /Black=0.03 (flawless)} 1/2-1/2

[Event "Chinese League Div-A Rapid 2022"]
[Site "Fuling,Chongqing"]
[Date "2022.09.19"]
[Round "11.20"]
[White "Zhao, Shengxin"]
[Black "Li, Xueyi"]
[Result "1/2-1/2"]
[ECO "D14"]
[WhiteElo "2112"]
[BlackElo "2280"]
[Annotator "NA RC"]
[PlyCount "35"]
[EventDate "2022.09.07"]
[EventType "team-tourn"]
[EventCountry "CHN"]
[SourceTitle "playchess.com"]
[Source "ChessBase"]
[SourceQuality "1"]
[TimeControl "1500+10"]

1. d4 {[%emt 0:00:18]} d5 {[%emt 0:00:16]} 2. c4 {[%emt 0:00:41]} c6 {[%emt 0:00:32]} 3. cxd5 {[%emt 0:01:01]} cxd5 {[%emt 0:00:02]} 4. Nf3 {[%emt 0:00:11]} Nc6 {[%emt 0:01:11]} 5. Nc3 {[%emt 0:00:32]} Nf6 {[%emt 0:01:06]} 6. Bf4 {[%emt 0:00:53]} Bf5 {[%emt 0:00:48]} 7. e3 {[%emt 0:00:44]} e6 {[%emt 0:01:10]} 8. Bd3 {[%emt 0:00:37]} Bxd3 {[%emt 0:01:27]} 9. Qxd3 {[%emt 0:00:16]} Bd6 {[%emt 0:01:15]} 10. Bxd6 {[%emt 0:01:21]} Qxd6 {[%emt 0:00:39]} 11. O-O {[%emt 0:00:28]} O-O {[%emt 0:00:04]} 12. Rfc1 {[%emt 0:01:07]} Rfc8 {[%emt 0:02:59]} 13. Ne2 {[%emt 0:01:17]} Ne7 {[%emt 0:00:03]} 14. Rxc8+ {[%emt 0:00:02]} Rxc8 {[%emt 0:00:02]} 15. Rc1 {[%emt 0:00:11]} Rxc1+ {[%emt 0:00:14]} 16. Nxc1 {[%emt 0:00:01]} Ne4 {[%emt 0:00:06]} 17. Nd2 {[%emt 0:00:15]} Nxd2 {[%emt 0:00:03]} 18. Qxd2 {[%emt 0:00:14]} 1/2-1/2

[Event "Chinese League Div-A Rapid 2022"]
[Site "Fuling,Chongqing"]
[Date "2022.09.19"]
[Round "11.21"]
[White "Xu, Jun"]
[Black "Liu, Qingnan"]
[Result "1-0"]
[ECO "A70"]
[WhiteElo "2474"]
[BlackElo "2542"]
[Annotator "TA"]
[PlyCount "89"]
[EventDate "2022.09.07"]
[EventType "team-tourn"]
[EventCountry "CHN"]
[SourceTitle "playchess.com"]
[Source "ChessBase"]
[SourceQuality "1"]
[TimeControl "1500+10"]

{[%evp 22,89,81,82,82,70,72,70,83,70,84,83,83,84,79,55,66,63,115,107,119,116,121,127,112,106,109,110,108,115,128,122,478,475,442,442,442,442,442,442,581,437,393,366,574,551,1210,1109,6756,6070,4894,650,630,573,505,490,5359,2710,29966,6070,29985,5427,4133,4061,5575,3093,5816,5716,29991,29981]} 1. c4 {[%emt 0:00:01]} Nf6 {[%emt 0:00:01]} 2. Nc3 {[%emt 0:00:02]} e6 {[%emt 0:00:01]} 3. d4 {[%emt 0:00:03]} c5 {[%emt 0:00:05]} 4. d5 {[%emt 0:00:03]} exd5 {[%emt 0:00:09]} 5. cxd5 {[%emt 0:00:01]} d6 {[%emt 0:00:03]} 6. e4 {[%emt 0:00:02]} g6 {[%emt 0:00:01]} 7. h3 {[%emt 0:00:04]} Bg7 {[%emt 0:00:08]} 8. Nf3 {[%emt 0:00:04]} O-O {[%emt 0:00:14]} 9. Bd3 {[%emt 0:00:02]} Na6 {[%emt 0:01:43]} 10. O-O {[%emt 0:00:08]} Nc7 {[%emt 0:00:08]} 11. Re1 $1 {[%emt 0:00:18] 11.Re1 is better than 11.a4.} Rb8 {[%emt 0:00:29]} 12. a4 {[%emt 0:00:03]} a6 {[%emt 0:02:09] A70: Modern Benoni: 6 e4 g6 7 Nf3.} 13. Bf1 {[%emt 0:00:41]} Nd7 {[%emt 0:00:48]} 14. Bf4 {[%emt 0:00:24] [#]} Ne8 $146 {[%emt 0:00:47] White is slightly better.} ({Predecessor:} 14... Ne5 15. Nxe5 dxe5 16. Be3 b6 17. a5 bxa5 18. Bxc5 Re8 19. Qd2 Ne6 20. Na4 {½-½ (20) Minero Pineda,S (2356)-Murillo Tsijli,A (2286) San Jose 2020}) 15. Rb1 {[%emt 0:01:27] White is much more active. The black rooks are badly placed.} Qc7 {[%emt 0:01:06]} 16. Qd2 {[%emt 0:00:13]} Ne5 {[%emt 0:02:55]} 17. Nxe5 {[%emt 0:01:24]} Bxe5 {[%emt 0:00:43]} 18. Bxe5 {[%emt 0:00:14]} (18. Bh6 {seems wilder.} Ng7 19. Rec1 Qa5 20. b4) 18... dxe5 {[%emt 0:00:02]} 19. b4 {[%emt 0:00:42]} c4 {[%emt 0:00:43]} (19... cxb4 $14 20. Rxb4 Nd6) 20. b5 $16 {[%emt 0:01:36]} Nd6 {[%emt 0:01:50]} 21. bxa6 $1 {[%emt 0:00:05]} bxa6 {[%emt 0:00:03]} 22. Rxb8 {[%emt 0:00:01]} Qxb8 {[%emt 0:00:02]} 23. Rb1 {[%emt 0:00:01] Inhibits Qb6.} Qa7 {[%emt 0:02:02] [#]} (23... Nxe4 $2 24. Qh6 $1 (24. Rxb8 Nxd2 25. Be2 Bf5 $11) 24... Qxb1 25. Nxb1 $18) 24. Qb2 $1 {[%emt 0:00:15]} Qd4 {[%emt 0:01:36] [#]} 25. Qb6 $1 {[%emt 0:00:22]} Qxc3 {[%emt 0:01:51]} 26. Qxd6 {[%emt 0:00:03] Black must now prevent Rb8.} Qc2 $2 {[%emt 0:00:06][%mdl 8192] Black cannot hold the game after this.} (26... Qd2 $16 {is more resistant.}) 27. Rb8 $18 {[%emt 0:00:54]} Qxa4 {[%emt 0:05:14]} 28. Qc5 {[%emt 0:00:38]} Qd7 {[%emt 0:00:09]} 29. Bxc4 {[%emt 0:00:15]} Re8 {[%emt 0:00:11]} 30. d6 {[%emt 0:00:55]} Kg7 {[%emt 0:00:26]} 31. Bd5 {[%emt 0:01:03] And now Bc6 would win.} Rd8 {[%emt 0:00:49]} 32. Bc6 {[%emt 0:02:30]} Qe6 {[%emt 0:00:01]} (32... Qxd6 $142 33. Qxd6 Rxd6 34. Rxc8 Rd1+ 35. Kh2 Rc1) 33. d7 {[%emt 0:01:12] Ba4 is the strong threat.} Bxd7 {[%emt 0:00:30]} 34. Rxd8 {[%emt 0:00:05] Threatening mate with Bd5.} Qxc6 {[%emt 0:00:02]} 35. Qxe5+ {[%emt 0:00:28][%mdl 4096] Endgame KQR-KQB} Kh6 {[%emt 0:00:01]} 36. Rg8 {[%emt 0:00:22]} (36. g4 $142 Bxg4 37. hxg4) 36... f6 {[%emt 0:00:06]} 37. Qf4+ {[%emt 0:00:49]} ({Inferior is} 37. Qe7 Qc1+ 38. Kh2 Qf4+ 39. Kh1 Qc1+ 40. Kh2 Qf4+ 41. Kh1 Qc1+ 42. Kh2 $11) 37... g5 {[%emt 0:00:01]} 38. Qe3 {[%emt 0:00:10] f4 would kill now.} Qd6 {[%emt 0:02:23] Inhibits f4.} (38... Qc4 $142) 39. h4 {[%emt 0:01:47][%cal Rg8g5] Intending Rxg5! and mate.} Qd1+ {[%emt 0:00:03]} 40. Kh2 {[%emt 0:00:02][%cal Rh4g5]} Qh5 {[%emt 0:00:02]} 41. g3 {[%emt 0:00:21]} (41. Qc5 $142 Qxh4+ 42. Kg1 Bf5 43. Qxf5 Qf4 44. Qh3+ Qh4 45. Qd7 Qxe4 46. Qg7+ Kh5 47. Qf7+ Kh4 48. Qxf6) 41... Be6 {[%emt 0:00:00]} 42. Ra8 {[%emt 0:00:58]} Bc4 {[%emt 0:00:23]} 43. Rc8 {[%emt 0:01:12]} Bb5 {[%emt 0:00:15]} 44. e5 {[%emt 0:00:45]} fxe5 {[%emt 0:01:51]} 45. Rg8 {[%emt 0:00:10] Weighted Error Value: White=0.27 (precise) /Black=1.16} 1-0